fUST/lending_fUST_20250326
["ID","MTS","AMOUNT","RATE_DAILY","PERIOD"]
[356706970,1742997044402,-2000.0,0.000355,15]
[356706971,1742997044413,-151.0,0.00035686,14]
[356706972,1742997044424,-529.78187027,0.00035749,2]
[356706973,1742997044436,-151.0,0.0003589,14]
[356706974,1742997044446,-151.0,0.0003589,14]
[356706975,1742997044458,-500.0,0.0003589,2]
[356706976,1742997044469,-250000.0,0.00036,30]
[356706977,1742997044481,-263.42242883,0.00036,120]
[356706978,1742997044492,-4000.0,0.00036,30]
[356706979,1742997044503,-500.0,0.00036,120]
[356706980,1742997044514,-500.0,0.00036,120]
[356706981,1742997044525,-264.1,0.00036,7]
[356706982,1742997044536,-160.0,0.00036,7]
[356706983,1742997044548,-267.0,0.00036,2]
[356706984,1742997044559,-267.0,0.00036,2]
[356706985,1742997044570,-151.0,0.00036,14]
[356706986,1742997044581,-418.40181814,0.00036,30]
[356706987,1742997044592,-160.0,0.00036,30]
[356706988,1742997044604,-834.83451184,0.00036,30]
[356706989,1742997044613,-151.0,0.00036,14]
[356706990,1742997044623,-286.884114,0.00036,14]
[356706991,1742997044633,-2514.51681066,0.00036176,7]
[356706992,1742997044642,-4684.06293336,0.000362,98]
[356706993,1742997044653,-4684.06293332,0.000362,98]
[356706994,1742997044663,-4684.06293332,0.000362,98]
[356706995,1742997044672,-4684.06293332,0.00036218,98]
[356706996,1742997044682,-2000.0,0.000365,15]
[356706997,1742997044691,-2000.0,0.000365,15]
[356706998,1742997044701,-40000.0,0.000366,14]
[356706999,1742997044710,-500.0,0.00036783,2]
[356707000,1742997044719,-218.20011272,0.00036822,2]
[356707001,1742997044728,-160.0,0.00036947,4]
[356707002,1742997044738,-5000.0,0.00037,120]
[356707003,1742997044747,-160.0,0.00037,7]
[356707004,1742997044756,-418.40181814,0.00037,7]
[356707005,1742997044765,-418.40181814,0.00037,120]
[356707006,1742997044774,-160.0,0.00037,7]
[356707007,1742997044784,-834.83451184,0.00037,7]
[356707008,1742997044931,-200.0,0.000372,120]
[356707009,1742997044944,-200.0,0.000372,120]
[356707010,1742997044954,-1659.30773911,0.00037302,2]
[356707011,1742997044963,-2514.51681066,0.00037348,7]
[356707012,1742997044972,-150.0,0.000375,112]
[356707013,1742997044982,-2000.0,0.000375,15]
[356707014,1742997044992,-2000.0,0.000375,15]
[356707015,1742997045002,-2000.0,0.000375,15]
[356707016,1742997045012,-2000.0,0.000375,15]
[356707017,1742997045022,-2000.0,0.000375,15]
[356707018,1742997045031,-2000.0,0.000375,15]
[356707019,1742997045040,-150.0,0.000378,14]
[356707020,1742997045049,-150.0,0.000378,14]
[356707021,1742997045059,-1177.41901028,0.00038,120]
[356707022,1742997045069,-500.0,0.00038,120]
[356707023,1742997045079,-5000.0,0.00038,120]
[356707024,1742997045089,-1062.99394739,0.00038155,65]
[356707025,1742997045099,-500.0,0.00038164,60]
[356707026,1742997045108,-153.616897,0.00038356,14]
[356707027,1742997045117,-151.0,0.00038356,14]
[356707028,1742997045128,-30000.0,0.00038356,5]
[356707029,1742997045140,-152.2,0.000385,120]
[356707030,1742997045150,-44100.0,0.000385,30]
[356707031,1742997045162,-2000.0,0.000385,15]
[356707032,1742997045172,-2000.0,0.000385,15]
[356707033,1742997045182,-2000.0,0.000385,15]
[356707034,1742997045191,-2514.51681066,0.00038521,8]
[356707035,1742997045201,-500.0,0.00038712,60]
[356707036,1742997045211,-4416.52058781,0.000389,30]
[356707037,1742997045220,-1178.62557318,0.00039,120]
[356707038,1742997045238,-10426.22923206,0.00039,120]
[356707039,1742997045249,-12018.551437,0.00039,2]
[356707040,1742997045260,-267.0,0.00039,2]
[356707041,1742997045271,-200.0,0.000392,120]
[356707043,1742997045283,-200.0,0.000392,120]
[356707045,1742997045295,-500.0,0.0003926,60]
[356707046,1742997045306,-161.766,0.00039305,54]
[356707047,1742997045317,-160.0,0.00039469,5]
[356707048,1742997045327,-15182.29,0.00039496,2]
[356707049,1742997045338,-5000.0,0.000395,60]
[356707050,1742997045348,-2000.0,0.000395,15]
[356707051,1742997045358,-151.0,0.000395,14]
[356707052,1742997045369,-173.9623762,0.00039569,5]
[356707053,1742997045380,-309.695,0.000396,2]
[356707054,1742997045390,-2514.51681066,0.00039693,8]
[356707055,1742997045400,-2000.0,0.000398,15]
[356707056,1742997045414,-10000.0,0.000399,10]
[356707057,1742997045425,-200.0,0.00039949,120]
[356707058,1742997045436,-189.08660835,0.00039999,2]
[356707059,1742997045447,-292.41760422,0.00039999,31]
[356707060,1742997045457,-500.0,0.00039999,31]
[356707061,1742997045469,-500.0,0.00039999,31]
[356707062,1742997045480,-313.1758438,0.00039999,31]
[356707063,1742997045491,-200.0,0.00039999,31]
[356707064,1742997045502,-250.0,0.00039999,31]
[356707065,1742997045515,-216.66802615,0.00039999,31]
[356707066,1742997045526,-200.0,0.00039999,31]
[356707067,1742997045536,-377.41006994,0.00039999,31]
[356707068,1742997045547,-511.41682549,0.00039999,31]
[356707069,1742997045557,-10000.0,0.0004,40]
[356707070,1742997045568,-2030.84972,0.0004,120]
[356707071,1742997045578,-248.0,0.0004,120]
[356707072,1742997045587,-1443.42195747,0.0004,120]
[356707073,1742997045598,-40914.93038602,0.0004,120]
[356707080,1742997046451,-18398.23393223,0.00028275,2]
[356707081,1742997046463,-2595.5905847,0.00028275,2]
[356707082,1742997046478,-3906.17548307,0.00028275,2]
[356707083,1742997046488,-192834.30703398,0.0004,120]
[356707084,1742997046498,-40381.12987542,0.0004,30]
[356707085,1742997046614,-23894.63130971,0.0004,30]
[356707086,1742997105527,178.9976,0.0001524,120]
[356707106,1742998156178,-181.3230745,0.00010741,2]
[356707107,1742998156201,-172.69071637,0.00010959,2]
[356707162,1742998232613,-181.3230745,0.00010634,2]
[356707163,1742998232623,-8.63235813,0.00010959,2]
[356707164,1742998232633,-1159.67380354,0.0001524,7]
[356707165,1742998232721,-4355.64409162,0.0001524,7]
[356707166,1742998232731,-586.72058927,0.000159,2]
[356707167,1742998232740,-300.0,0.00015987,2]
[356707168,1742998232752,-834.83451184,0.00015988,2]
[356707169,1742998232762,-160.0,0.00015988,2]
[356707170,1742998232772,-160.0,0.00015988,2]
[356707171,1742998232782,-5931.02441627,0.00015988,2]
[356707172,1742998232791,-418.40181814,0.00015988,2]
[356707173,1742998232802,-586.72058915,0.00016969,2]
[356707174,1742998232811,-586.72058915,0.00018038,2]
[356707175,1742998232821,-586.72058915,0.00019107,2]
[356707176,1742998232830,-586.72058915,0.00020176,2]
[356707177,1742998232840,-500.0,0.00020367,2]
[356707178,1742998232850,-500.0,0.00020367,2]
[356707179,1742998232859,-500.0,0.00020367,2]
[356707180,1742998232869,-500.0,0.00020367,2]
[356707181,1742998232879,-500.0,0.00020367,2]
[356707182,1742998232890,-500.0,0.00020367,2]
[356707183,1742998232900,-500.0,0.00020367,2]
[356707184,1742998232910,-500.0,0.00020367,2]
[356707185,1742998232920,-500.0,0.00020367,2]
[356707186,1742998232930,-500.0,0.00020367,2]
[356707187,1742998232940,-24900.0,0.00020689,2]
[356707188,1742998232950,-150.0,0.00021,2]
[356707189,1742998232960,-311.33539688,0.00021166,2]
[356707190,1742998232970,-500.0,0.00021167,2]
[356707191,1742998232980,-515.21676361,0.00021244,2]
[356707192,1742998232990,-500.0,0.00021244,2]
[356707193,1742998233000,-586.72058915,0.00021245,2]
[356707194,1742998233016,-250.0,0.00021414,2]
[356707195,1742998233032,-600.0,0.0002142,2]
[356707196,1742998233042,-476.95800034,0.00021766,2]
[356707197,1742998233052,-150.0,0.00022,2]
[356707198,1742998233062,-913.94199366,0.00022244,2]
[356707199,1742998233073,-586.72058915,0.00022314,3]
[356707200,1742998233084,-639.31158485,0.00022621,2]
[356707201,1742998233094,-586.72058915,0.00023383,3]
[356707202,1742998233104,-586.72058915,0.00024452,3]
[356707203,1742998233115,-586.72058915,0.00025521,4]
[356707204,1742998233125,-151.0952036,0.00025781,2]
[356707205,1742998233137,-1000.0,0.00025846,2]
[356707206,1742998233152,-1000.0,0.00025846,2]
[356707207,1742998233163,-1000.0,0.00025846,2]
[356707208,1742998233173,-1000.0,0.00025846,2]
[356707209,1742998233184,-1000.0,0.00025846,2]
[356707210,1742998233195,-1000.0,0.00025846,2]
[356707211,1742998233205,-1000.0,0.00025846,2]
[356707212,1742998233215,-1000.0,0.00025846,2]
[356707213,1742998233225,-1000.0,0.00025846,2]
[356707214,1742998233236,-586.72058915,0.0002659,4]
[356707215,1742998233247,-1000.0,0.00026646,2]
[356707216,1742998233257,-2200.0,0.00026745,2]
[356707217,1742998233267,-337.94,0.000268,7]
[356707218,1742998233277,-203.95525122,0.00027399,2]
[356707219,1742998233288,-161.766,0.000274,16]
[356707220,1742998233298,-586.72058915,0.00027659,4]
[356707221,1742998233308,-500.0,0.00027712,2]
[356707222,1742998233319,-418.40181814,0.00028,3]
[356707223,1742998233329,-586.72058915,0.00028728,5]
[356707224,1742998233339,-414.82693477,0.00029664,2]
[356707225,1742998233349,-586.72058915,0.00029797,5]
[356707226,1742998233359,-251.83,0.0003,120]
[356707227,1742998233369,-586.72058915,0.00030866,5]
[356707228,1742998233380,-586.72058915,0.00031934,6]
[356707229,1742998233392,-414.82693477,0.00032515,2]
[356707230,1742998233403,-500.0,0.00032877,2]
[356707231,1742998233413,-500.0,0.00032877,2]
[356707232,1742998233423,-6265.8353374,0.00032877,5]
[356707233,1742998233433,-586.72058915,0.00033003,6]
[356707234,1742998233444,-281.62,0.000339,14]
[356707235,1742998233454,-586.72058915,0.00034072,6]
[356707236,1742998233465,-586.72058915,0.00035141,7]
[356707237,1742998233475,-414.82693477,0.00035366,2]
[356707238,1742998233485,-1500.0,0.00035865,5]
[356707239,1742998233495,-1500.0,0.00035865,5]
[356707240,1742998233506,-1500.0,0.00035865,5]
[356707241,1742998233515,-1114.71581411,0.00035865,5]
[356707242,1742998233530,-385.28418589,0.00035865,5]
[356707243,1742998233539,-1500.0,0.00035865,5]
[356707244,1742998233549,-1500.0,0.00035865,5]
[356707245,1742998233559,-1500.0,0.00035865,5]
[356707246,1742998233569,-1500.0,0.00035865,5]
[356707247,1742998233579,-1500.0,0.00035865,2]
[356707248,1742998233589,-500.0,0.0003589,2]
[356707249,1742998233599,-586.72058915,0.0003621,7]
[356707250,1742998233609,-500.0,0.00036664,2]
[356707251,1742998233619,-1500.0,0.00036665,5]
[356707252,1742998233629,-586.72058915,0.00037279,7]
[356707253,1742998233645,-500.0,0.00038164,60]
[356707254,1742998233655,-414.82693477,0.00038217,2]
[356707255,1742998233665,-586.72058915,0.00038348,8]
[356707256,1742998233679,-938.4756542,0.00038799,4]
[356707257,1742998233689,-500.0,0.0003926,60]
[356707258,1742998233699,-586.72058915,0.00039417,8]
[356707259,1742998233710,-469.03949567,0.0003977,2]
[356707260,1742998233719,-4864.04464644,0.0003977,2]
[356707261,1742998233730,-242.42695226,0.00039788,2]
[356707262,1742998233740,-173.9623762,0.000398,5]
[356707263,1742998233750,-834.83451184,0.0003987,3]
[356707264,1742998233760,-600.0,0.0003987,30]
[356707265,1742998233770,-500.0,0.00039873,5]
[356707266,1742998233780,-7949.78336749,0.0003988,30]
[356707278,1742998238311,-150.0,0.00022,2]
[356707280,1742998238321,-1681.03016617,0.00024953,3]
[356707281,1742998238331,-206.93,0.000268,7]
[356707282,1742998238340,-20593.86736307,0.0003988,31]
[356707284,1742998238350,-37917.41881579,0.0003988,30]
[356707286,1742998238362,-345.65443761,0.0003988,30]
[356707288,1742998238372,-1000.0,0.0003988,30]
[356707290,1742998238384,-12104.80942855,0.0003988,30]
[356707292,1742998238395,-2646.5360253,0.0003988,30]
[356707343,1742998243516,-100000.0,0.0003988,30]
[356707349,1742998246475,-63260.83400052,0.0003988,30]
[356707350,1742998246509,-17450.0,0.0003988,30]
[356707351,1742998246545,-4238.61,0.0003988,30]
[356707353,1742998246671,-3866.62758625,0.0003988,30]
[356707364,1742998470694,1034.5599978,0.0001524,120]
[356707365,1742998479483,164.1889786,0.0001524,120]
[356707416,1742999186829,-161.766,0.0003168,30]
[356707417,1742999186858,-936.81258668,0.000362,98]
[356707418,1742999186887,-500.0,0.00038164,60]
[356707419,1742999186915,-500.0,0.00039,120]
[356707420,1742999186943,-500.0,0.00039,120]
[356707421,1742999186971,-500.0,0.0003926,60]
[356707422,1742999187000,-22036.435462,0.00039779,32]
[356707423,1742999187029,-195.77226479,0.000398,31]
[356707424,1742999187057,-293.88017954,0.00039879,31]
[356707425,1742999187085,-500.0,0.00039879,31]
[356707426,1742999187112,-184.62460974,0.00039879,31]
[356707427,1742999187136,-325.18601159,0.00039879,31]
[356707428,1742999187165,-500.0,0.00039879,31]
[356707429,1742999187192,-500.0,0.00039879,31]
[356707430,1742999187220,-500.0,0.00039879,31]
[356707431,1742999187250,-500.0,0.00039879,31]
[356707432,1742999187277,-500.0,0.00039879,31]
[356707433,1742999187304,-500.0,0.00039879,31]
[356707434,1742999187331,-499.99999999,0.00039879,31]
[356707435,1742999187359,-511.93986547,0.00039879,31]
[356707436,1742999187386,-511.93986547,0.00039879,31]
[356707437,1742999187415,-511.93986547,0.00039879,31]
[356707438,1742999187442,-627984.70544119,0.0003988,30]
[356707439,1742999187468,-550.0,0.0003988,30]
[356707440,1742999187493,-922.34909586,0.0003988,120]
[356707441,1742999187518,-561.30154711,0.0003988,30]
[356707442,1742999187543,-160.0,0.0003988,30]
[356707443,1742999187569,-418.40181814,0.0003988,30]
[356707444,1742999187595,-10000.0,0.000399,30]
[356707445,1742999187624,-10000.0,0.0004,40]
[356707446,1742999187653,-217732.94538696,0.0004,30]
[356707448,1742999193496,-936.81258666,0.000362,98]
[356707449,1742999193664,-27771.2650987,0.00039,120]
[356707450,1742999193703,-834.83451184,0.0003988,30]
[356707451,1742999193734,-269230.29342791,0.0004,30]
[356707452,1742999193764,-2268.62004267,0.0004,120]
[356707453,1742999193793,-1097351.0,0.0004,30]
[356707454,1742999193821,-1012.16413612,0.0004,120]
[356707455,1742999193854,-56436.19221659,0.0004,30]
[356707456,1742999193882,-1952.37531082,0.0004,120]
[356707457,1742999193916,-501.02172264,0.0004,120]
[356707458,1742999193946,-500.0,0.0004,120]
[356707459,1742999193974,-2000.0,0.0004,120]
[356707460,1742999194006,-2015.0,0.0004,120]
[356707461,1742999194040,-49999.56903838,0.0004,120]
[356707462,1742999194068,-1000.0,0.0004,60]
[356707463,1742999194096,-100016.04027991,0.0004,40]
[356707464,1742999194124,-336.0,0.0004,60]
[356707465,1742999194153,-14000.0,0.0004,30]
[356707466,1742999194180,-1150.0,0.0004,30]
[356707467,1742999194208,-21203.0,0.0004,120]
[356707468,1742999194234,-500.0,0.0004,30]
[356707469,1742999194261,-150.68,0.0004,120]
[356707470,1742999194288,-150.35,0.0004,30]
[356707471,1742999194316,-418.40181814,0.0004,120]
[356707472,1742999194344,-1323.98082,0.0004,32]
[356707473,1742999194371,-200.0,0.0004005,120]
[356707474,1742999194400,-500.0,0.00040356,60]
[356707475,1742999194430,-10000.0,0.00041,41]
[356707476,1742999194457,-1424.213024,0.00041,120]
[356707477,1742999194484,-7044.10246212,0.00041,30]
[356707478,1742999194512,-4176.0,0.00041,120]
[356707479,1742999194539,-500.0,0.00041,30]
[356707480,1742999194567,-200.0,0.00041073,120]
[356707481,1742999194594,-500.0,0.00041095,120]
[356707482,1742999194619,-500.0,0.00041095,120]
[356707483,1742999194646,-500.0,0.00041095,120]
[356707484,1742999194675,-500.0,0.00041095,120]
[356707485,1742999194703,-500.0,0.00041095,120]
[356707486,1742999194730,-576.15330973,0.00041095,120]
[356707487,1742999194758,-500.0,0.00041095,120]
[356707488,1742999194786,-500.0,0.00041095,120]
[356707489,1742999194814,-500.0,0.00041095,120]
[356707490,1742999194841,-500.0,0.00041095,120]
[356707491,1742999194870,-500.0,0.00041095,120]
[356707492,1742999194897,-500.0,0.00041095,120]
[356707493,1742999194925,-409.5311469,0.00041095,120]
[356707494,1742999194953,-1000.0,0.00041095,120]
[356707495,1742999194980,-1000.0,0.00041095,120]
[356707496,1742999195009,-1000.0,0.00041095,120]
[356707497,1742999195036,-1000.0,0.00041095,120]
[356707498,1742999195063,-1000.0,0.00041095,120]
[356707499,1742999195090,-1000.0,0.00041095,120]
[356707500,1742999195117,-1000.0,0.00041095,120]
[356707501,1742999195144,-1000.0,0.00041095,120]
[356707502,1742999195173,-1000.0,0.00041095,120]
[356707503,1742999195199,-1000.0,0.00041095,120]
[356707504,1742999195225,-1000.0,0.00041095,120]
[356707505,1742999195252,-1000.0,0.00041095,120]
[356707506,1742999195279,-1000.0,0.00041095,120]
[356707507,1742999195304,-1000.0,0.00041095,120]
[356707508,1742999195331,-1000.0,0.00041095,120]
[356707509,1742999195358,-1000.0,0.00041095,120]
[356707510,1742999195384,-1000.0,0.00041095,120]
[356707511,1742999195413,-1000.0,0.00041095,120]
[356707512,1742999195439,-1000.0,0.00041095,120]
[356707513,1742999195465,-1000.0,0.00041095,120]
[356707514,1742999195491,-366.52321074,0.00041095,120]
[356707515,1742999195518,-1000.0,0.00041095,120]
[356707516,1742999195544,-1000.0,0.00041095,120]
[356707517,1742999195570,-1000.0,0.00041095,120]
[356707518,1742999195596,-1000.0,0.00041095,120]
[356707519,1742999195622,-1000.0,0.00041095,120]
[356707520,1742999195651,-1000.0,0.00041095,120]
[356707521,1742999195678,-207.91745081,0.00041095,120]
[356707522,1742999195705,-200.0,0.00041151,120]
[356707523,1742999195731,-345.11716,0.000412,120]
[356707524,1742999195757,-281.40113,0.000412,120]
[356707525,1742999195783,-1488.58002834,0.00041437,37]
[356707526,1742999195809,-500.0,0.00041452,60]
[356707527,1742999195834,-644.1,0.00041501,30]
[356707528,1742999195860,-200.0,0.00041595,120]
[356707529,1742999195887,-200.0,0.00041675,120]
[356707530,1742999195913,-1610.2501249,0.000418,120]
[356707531,1742999195938,-704.66141528,0.00041824,120]
[356707532,1742999195963,-200.0,0.00041859,120]
[356707533,1742999195994,-4904.14553764,0.00041945,120]
[356707534,1742999196021,-10000.0,0.00042,42]
[356707535,1742999196046,-701239.66928535,0.00042,30]
[356707536,1742999196073,-2595.47410457,0.00042,30]
[356707537,1742999196098,-150.0,0.00042,120]
[356707538,1742999196123,-3850.88857781,0.00042,120]
[356707539,1742999196148,-15899.0,0.00042,120]
[356707540,1742999196175,-500.0,0.00042,120]
[356707541,1742999196201,-519.7,0.00042,120]
[356707542,1742999196321,-21203.0,0.00042,120]
[356707543,1742999196347,-895.0,0.00042,30]
[356707544,1742999196375,-200.0,0.00042069,120]
[356707545,1742999196403,-200.0,0.00042085,120]
[356707546,1742999196430,-200.0,0.00042301,120]
[356707547,1742999196455,-500.0,0.00042548,60]
[356707548,1742999196481,-1082.71285419,0.00042761,120]
[356707549,1742999196507,-200.0,0.00042796,120]
[356707550,1742999196532,-1082.71285419,0.00042861,120]
[356707551,1742999196556,-1082.71285419,0.00042961,120]
[356707552,1742999196583,-10000.0,0.00043,43]
[356707553,1742999196607,-1018.402496,0.00043,120]
[356707554,1742999196632,-9209.01235908,0.00043,60]
[356707555,1742999196658,-506.78,0.00043,120]
[356707556,1742999196683,-1000.0,0.00043,30]
[356707557,1742999196710,-300.0,0.00043,120]
[356707558,1742999196737,-221.0,0.00043,120]
[356707559,1742999196764,-1082.71285419,0.00043061,120]
[356707560,1742999196802,-200.0,0.00043083,120]
[356707561,1742999196841,-1082.71285419,0.00043161,120]
[356707562,1742999196879,-1082.71285419,0.00043261,120]
[356707563,1742999196918,-1082.71285419,0.00043361,120]
[356707564,1742999196957,-1082.71285419,0.00043461,120]
[356707565,1742999196998,-200.0,0.0004347,120]
[356707566,1742999197035,-226.41059,0.000435,120]
[356707567,1742999197073,-313.86122,0.000435,120]
[356707568,1742999197112,-200.0,0.000435,120]
[356707569,1742999197153,-1082.71285419,0.00043561,120]
[356707570,1742999197191,-500.0,0.00043644,60]
[356707571,1742999197229,-1082.71285419,0.00043661,120]
[356707572,1742999197268,-1199.52007839,0.00043744,40]
[356707573,1742999197309,-1082.71285419,0.00043761,120]
[356707574,1742999197347,-967.90094589,0.000438,120]
[356707575,1742999197384,-166.64041556,0.000438,120]
[356707576,1742999197423,-1000.0,0.00043835,120]
[356707577,1742999197459,-1000.0,0.00043835,120]
[356707578,1742999197496,-1000.0,0.00043835,120]
[356707579,1742999197538,-1000.0,0.00043835,120]
[356707580,1742999197575,-1000.0,0.00043835,120]
[356707581,1742999197611,-1000.0,0.00043835,120]
[356707582,1742999197650,-1119.66554644,0.00043835,120]
[356707583,1742999197688,-999.0,0.00043835,120]
[356707584,1742999197726,-500.0,0.00043835,120]
[356707585,1742999197762,-50000.0,0.00043836,30]
[356707586,1742999197801,-1082.71285419,0.00043861,120]
[356707587,1742999197837,-1082.71285419,0.00043961,120]
[356707588,1742999197874,-500.0,0.00043972,120]
[356707589,1742999197913,-10000.0,0.00044,44]
[356707590,1742999197950,-300.0,0.00044,120]
[356707591,1742999197988,-55540.0,0.00044,30]
[356707592,1742999198026,-1001182.0,0.00044,30]
[356707593,1742999198063,-672.79325372,0.00044,120]
[356707594,1742999198100,-21203.0,0.00044,120]
[356707595,1742999198137,-200.0,0.00044056,120]
[356707596,1742999198175,-1082.71285419,0.00044061,120]
[356707597,1742999198211,-393.69805236,0.00044109,120]
[356707598,1742999198247,-1082.71285419,0.00044161,120]
[356707599,1742999198284,-1001.0,0.00044246,120]
[356707600,1742999198322,-1082.71285419,0.00044261,120]
[356707601,1742999198364,-200.0,0.00044267,120]
[356707602,1742999198403,-28646.85431279,0.00044278,120]
[356707603,1742999198445,-200.0,0.0004436,120]
[356707604,1742999198483,-1082.71285419,0.00044361,120]
[356707605,1742999198519,-1082.71285419,0.00044461,120]
[356707606,1742999198556,-356686.60121704,0.000445,120]
[356707607,1742999198595,-1082.71285419,0.00044561,120]
[356707608,1742999198633,-1082.71285419,0.00044661,120]
[356707609,1742999198677,-191.33358192,0.0004474,120]
[356707610,1742999198717,-1082.71285419,0.00044761,120]
[356707611,1742999198754,-49278.80639103,0.000448,120]
[356707612,1742999198793,-1082.71285419,0.00044861,120]
[356707613,1742999198830,-6154.08034525,0.000449,120]
[356707614,1742999198869,-1082.71285419,0.00044961,120]
[356707615,1742999198912,-200.0,0.00044974,120]
[356707616,1742999198951,-1000.0,0.00044999,120]
[356707617,1742999198992,-10000.0,0.00045,45]
[356707618,1742999199031,-10129.9,0.00045,120]
[356707619,1742999199070,-208.10988454,0.00045,120]
[356707620,1742999199108,-20019.999999,0.00045,120]
[356707621,1742999199148,-828.48,0.00045,30]
[356707622,1742999199189,-10000.0,0.00045,30]
[356707623,1742999199227,-151.0,0.00045,120]
[356707624,1742999199266,-151.0,0.00045,120]
[356707625,1742999199306,-9269.7295333,0.00045,30]
[356707626,1742999199347,-10645.95170994,0.00045,120]
[356707627,1742999199386,-112678.71777245,0.00045,120]
[356707628,1742999199425,-1682.56824753,0.00045,120]
[356707629,1742999199463,-9365.0,0.00045,30]
[356707630,1742999199503,-252.86,0.00045,120]
[356707631,1742999199543,-14999.999999,0.00045,60]
[356707632,1742999199585,-999.99999999,0.00045,120]
[356707633,1742999199623,-33025.72571708,0.00045,30]
[356707634,1742999199664,-200.0,0.00045039,120]
[356707635,1742999199703,-1082.71285419,0.00045061,120]
[356707636,1742999199741,-2461.27797551,0.000451,120]
[356707637,1742999199892,-1082.71285419,0.00045161,120]
[356707638,1742999199937,-219.74627674,0.0004521,120]
[356707639,1742999199985,-219.74,0.0004521,120]
[356707640,1742999200025,-170.9137708,0.0004521,120]
[356707641,1742999200067,-170.9137708,0.0004521,120]
[356707642,1742999200106,-170.9137708,0.0004521,120]
[356707643,1742999200146,-170.9137708,0.0004521,120]
[356707644,1742999200189,-170.9137708,0.0004521,120]
[356707645,1742999200228,-170.91,0.0004521,120]
[356707646,1742999200267,-833.87923508,0.0004521,120]
[356707647,1742999200309,-833.87923508,0.0004521,120]
[356707648,1742999200349,-833.87923508,0.0004521,120]
[356707649,1742999200391,-833.87923508,0.0004521,120]
[356707650,1742999200433,-833.87923508,0.0004521,120]
[356707651,1742999200474,-833.87923508,0.0004521,120]
[356707652,1742999200513,-833.87923508,0.0004521,120]
[356707653,1742999200553,-833.87923508,0.0004521,120]
[356707654,1742999200592,-833.87923508,0.0004521,120]
[356707655,1742999200630,-833.87923508,0.0004521,120]
[356707656,1742999200670,-833.87923508,0.0004521,120]
[356707657,1742999200708,-833.87923508,0.0004521,120]
[356707658,1742999200750,-833.87923508,0.0004521,120]
[356707659,1742999200789,-833.87923508,0.0004521,120]
[356707660,1742999200830,-833.87923508,0.0004521,120]
[356707661,1742999200869,-833.87923508,0.0004521,120]
[356707662,1742999200911,-833.87923508,0.0004521,120]
[356707663,1742999200952,-833.87923508,0.0004521,120]
[356707664,1742999200994,-833.87923508,0.0004521,120]
[356707665,1742999201035,-833.87,0.0004521,120]
[356707666,1742999201075,-1945.71821518,0.0004521,120]
[356707667,1742999201116,-1945.71821518,0.0004521,120]
[356707668,1742999201156,-1945.71821518,0.0004521,120]
[356707669,1742999201196,-1945.71821518,0.0004521,120]
[356707670,1742999201233,-1945.71821518,0.0004521,120]
[356707671,1742999201273,-1945.71821518,0.0004521,120]
[356707672,1742999201313,-1945.71821518,0.0004521,120]
[356707673,1742999201354,-1945.71821518,0.0004521,120]
[356707674,1742999201395,-1945.71821518,0.0004521,120]
[356707675,1742999201438,-1945.71821518,0.0004521,120]
[356707676,1742999201483,-1945.71821518,0.0004521,120]
[356707677,1742999201524,-1945.71821518,0.0004521,120]
[356707678,1742999201565,-1945.71821518,0.0004521,120]
[356707679,1742999201607,-1945.71821518,0.0004521,120]
[356707680,1742999201654,-1945.71821518,0.0004521,120]
[356707681,1742999201697,-1945.71821518,0.0004521,120]
[356707682,1742999201739,-1945.71821518,0.0004521,120]
[356707683,1742999201781,-1945.71821518,0.0004521,120]
[356707684,1742999201822,-1945.71821518,0.0004521,120]